fUST/lending_fUST_20240321
["ID","MTS","AMOUNT","RATE_DAILY","PERIOD"]
[319769878,1710961854307,-527.16,0.00029718,2]
[319769879,1710961854316,-1432.42,0.00029718,2]
[319769880,1710961854326,-1494.52,0.00029718,2]
[319769881,1710961854335,-18816.08,0.00029718,2]
[319769882,1710961854344,-510.41,0.00029718,2]
[319769883,1710961854353,-8701.38,0.00029718,2]
[319769884,1710961854364,-2481.77,0.00029718,2]
[319769885,1710961854373,-2188.72,0.0002972,2]
[319769886,1710961854383,-802.65,0.0002972,2]
[319769887,1710961854392,-653.37,0.0002972,2]
[319769888,1710961854401,-500.0,0.0002972,2]
[319769889,1710961854410,-2755.35,0.0002972,2]
[319769890,1710961854419,-2084.53,0.0002972,2]
[319769891,1710961854430,-500.0,0.0002972,2]
[319769892,1710961854439,-1694.5,0.0002972,2]
[319769893,1710961854450,-535.29,0.0002972,2]
[319769894,1710961854459,-994.24,0.0002972,2]
[319769895,1710961854471,-2083.51,0.0002972,2]
[319769896,1710961854487,-581.11,0.0002972,2]
[319769897,1710961854497,-500.0,0.0002972,2]
[319769898,1710961854506,-1737.41,0.0002972,2]
[319769899,1710961854515,-500.0,0.0002972,2]
[319769900,1710961854524,-716.36,0.00029721,2]
[319769901,1710961854534,-509.55,0.00029721,2]
[319769902,1710961854553,-504.23,0.00029721,2]
[319769903,1710961854566,-561.67,0.00029721,2]
[319769904,1710961854577,-1524.38,0.00029721,2]
[319769905,1710961854588,-27940.33,0.00029721,2]
[319769906,1710961854598,-919.35,0.00029721,2]
[319769907,1710961854608,-500.0,0.00029721,2]
[319769908,1710961854619,-794.05,0.00029721,2]
[319769909,1710961854629,-500.0,0.00029823,2]
[319769910,1710961854639,-500.0,0.00029823,2]
[319769911,1710961854649,-571.58,0.00029823,2]
[319769912,1710961854660,-500.0,0.00029823,2]
[319769913,1710961854670,-500.0,0.00029823,2]
[319769914,1710961854682,-7748.43606094,0.0002988,2]
[319769915,1710961854693,-2000.0,0.000299,2]
[319769916,1710961854703,-206.98350108,0.00029933,2]
[319769917,1710961854713,-156.41735726,0.00029933,2]
[319769918,1710961854723,-179.46615246,0.00029933,2]
[319769919,1710961854733,-241.31465157,0.00029933,2]
[319769920,1710961854743,-156.10658839,0.00029934,2]
[319769921,1710961854753,-155.40805961,0.00029934,2]
[319769922,1710961854764,-180.21817229,0.00029934,3]
[319769923,1710961854776,-240.08181242,0.00029934,2]
[319769924,1710961854785,-250.9988996,0.00029934,2]
[319769925,1710961854795,-252.74981126,0.00029934,2]
[319769926,1710961854805,-166.666666,0.00029962,2]
[319769927,1710961854817,-389.32522407,0.00029992,2]
[319769928,1710961854828,-500.0,0.00029992,2]
[319769929,1710961854838,-529.5,0.00029992,2]
[319769930,1710961854848,-500.0,0.00029992,2]
[319769931,1710961854858,-659.16,0.00029992,2]
[319769932,1710961854869,-932.37,0.00029992,2]
[319769933,1710961854879,-701.55,0.00029992,2]
[319769934,1710961854889,-15413.08,0.00029992,2]
[319769935,1710961854901,-1466.71,0.00029992,2]
[319769936,1710961854912,-3182.37,0.00029992,2]
[319769937,1710961854922,-2158.51,0.00029992,2]
[319769938,1710961854936,-15590.35,0.00029992,2]
[319769939,1710961854945,-1383.74,0.00029992,2]
[319769940,1710961854955,-204.68341882,0.00029992,2]
[319769941,1710961854964,-710.49,0.00029992,2]
[319769942,1710961854974,-1816.6,0.00029992,2]
[319769943,1710961854984,-544.03,0.00029992,2]
[319769944,1710961854993,-606.67,0.00029992,2]
[319769945,1710961855003,-3035.66,0.00029992,2]
[319769946,1710961855013,-850.09,0.00029992,2]
[319769947,1710961855023,-925.44,0.00029992,2]
[319769948,1710961855032,-2353.36,0.00029992,2]
[319769949,1710961855042,-708.12,0.00029992,2]
[319769950,1710961855051,-568.02,0.00029992,2]
[319769951,1710961855061,-1196.98,0.00029992,2]
[319769952,1710961855070,-3670.27,0.00029992,2]
[319769953,1710961855079,-527.16,0.00029992,2]
[319769954,1710961855089,-1432.42,0.00029992,2]
[319769955,1710961855099,-1494.52,0.00029992,2]
[319769956,1710961855108,-18816.08,0.00029992,2]
[319769957,1710961855118,-510.41,0.00029992,2]
[319769958,1710961855127,-8701.38,0.00029992,2]
[319769959,1710961855136,-2481.77,0.00029992,2]
[319769960,1710961855146,-2188.72,0.00029994,2]
[319769961,1710961855155,-802.65,0.00029994,2]
[319769962,1710961855165,-653.37,0.00029994,2]
[319769963,1710961855175,-500.0,0.00029994,2]
[319769964,1710961855188,-2755.35,0.00029994,2]
[319769965,1710961855197,-2084.53,0.00029994,2]
[319769966,1710961855207,-251.47370947,0.00029994,2]
[319769967,1710961855216,-1694.5,0.00029994,2]
[319769968,1710961855226,-535.29,0.00029994,2]
[319769969,1710961855235,-994.24,0.00029994,2]
[319769970,1710961855245,-2083.51,0.00029994,2]
[319769971,1710961855254,-581.11,0.00029994,2]
[319769972,1710961855264,-500.0,0.00029994,2]
[319769973,1710961855273,-1737.41,0.00029994,2]
[319769974,1710961855283,-500.0,0.00029994,2]
[319769975,1710961855291,-716.36,0.00029995,2]
[319769976,1710961855300,-509.55,0.00029995,2]
[319769977,1710961855309,-504.23,0.00029995,2]
[319769978,1710961855406,-561.67,0.00029995,2]
[319769979,1710961855426,-1524.38,0.00029995,2]
[319769980,1710961855441,-27940.33,0.00029995,2]
[319769981,1710961855450,-919.35,0.00029995,2]
[319769982,1710961855459,-500.0,0.00029995,2]
[319769983,1710961855468,-794.05,0.00029995,2]
[319769984,1710961855477,-6926.37526401,0.0003,10]
[319769985,1710961855487,-3359.74657758,0.0003,4]
[319769986,1710961855495,-641.25091115,0.0003,4]
[319769987,1710961855505,-1000.0,0.0003,2]
[319769988,1710961855514,-7424.24592154,0.0003,2]
[319769989,1710961855524,-529.6136,0.0003,2]
[319769990,1710961855533,-787.25212851,0.0003,2]
[319769991,1710961855542,-597.80075257,0.0003,2]
[319769992,1710961855551,-49903.16210226,0.0003,30]
[319769993,1710961855560,-62457.51089177,0.0003,2]
[319769994,1710961855569,-3096.82103482,0.0003,2]
[319769995,1710961855579,-190.0,0.0003,2]
[319769996,1710961855588,-191.20531276,0.00030034,4]
[319769997,1710961855596,-309.76767502,0.00030034,4]
[319769998,1710961855605,-10148.3961771,0.00030034,4]
[319769999,1710961855614,-500.0,0.00030097,2]
[319770000,1710961855623,-500.0,0.00030097,2]
[319770001,1710961855633,-571.58,0.00030097,2]
[319770002,1710961855642,-500.0,0.00030097,2]
[319770003,1710961855651,-500.0,0.00030097,2]
[319770004,1710961855660,-12500.0,0.00030112,55]
[319770005,1710961855669,-3992.47304587,0.00030113,2]
[319770006,1710961855678,-1000.0,0.00030113,2]
[319770007,1710961855688,-300.0,0.00030113,2]
[319770008,1710961855697,-150.0,0.00030113,2]
[319770009,1710961855706,-5423.91084449,0.00030113,7]
[319770010,1710961855715,-299.90278323,0.00030113,2]
[319770011,1710961855724,-198356.05112214,0.00030113,7]
[319770012,1710961855733,-249.99999901,0.00030113,2]
[319770013,1710961855742,-141161.30265495,0.00030113,7]
[319770014,1710961855751,-47731.50650433,0.00030113,7]
[319770015,1710961855760,-18771.29320988,0.00030113,7]
[319770016,1710961855771,-1261.02991617,0.00030113,2]
[319770017,1710961855780,-174.542,0.00030113,2]
[319770018,1710961855790,-156.47548974,0.00030135,4]
[319770019,1710961855799,-578.87,0.00030136,2]
[319770020,1710961855810,-155.0,0.00030137,2]
[319770021,1710961855818,-194.37,0.00030181,35]
[319770022,1710961855827,-150.5,0.00030191,35]
[319770023,1710961855836,-578.87,0.00030191,2]
[319770024,1710961855845,-578.87,0.00030246,2]
[319770025,1710961855855,-484.95144181,0.00030266,2]
[319770026,1710961855864,-529.5,0.00030266,2]
[319770027,1710961855874,-500.0,0.00030266,2]
[319770028,1710961855884,-659.16,0.00030266,2]
[319770029,1710961855895,-932.37,0.00030266,2]
[319770030,1710961855903,-701.55,0.00030266,2]
[319770031,1710961855911,-15413.08,0.00030266,2]
[319770032,1710961855920,-1466.71,0.00030266,2]
[319770033,1710961855929,-3182.37,0.00030266,2]
[319770034,1710961855943,-2158.51,0.00030266,2]
[319770035,1710961855952,-15590.35,0.00030266,2]
[319770036,1710961855961,-1383.74,0.00030266,2]
[319770037,1710961855971,-710.49,0.00030266,2]
[319770038,1710961855980,-1816.6,0.00030266,2]
[319770039,1710961855989,-544.03,0.00030266,2]
[319770040,1710961855998,-606.67,0.00030266,2]
[319770041,1710961856007,-3035.66,0.00030266,2]
[319770042,1710961856017,-850.09,0.00030266,2]
[319770043,1710961856026,-925.44,0.00030266,2]
[319770044,1710961856035,-2353.36,0.00030266,2]
[319770045,1710961856047,-708.12,0.00030266,2]
[319770046,1710961856056,-568.02,0.00030266,2]
[319770047,1710961856065,-1196.98,0.00030266,2]
[319770048,1710961856074,-3670.27,0.00030266,2]
[319770049,1710961856083,-527.16,0.00030266,2]
[319770050,1710961856093,-1432.42,0.00030266,2]
[319770051,1710961856103,-1494.52,0.00030266,2]
[319770052,1710961856112,-18816.08,0.00030266,2]
[319770053,1710961856122,-510.41,0.00030266,2]
[319770054,1710961856131,-1649.36049515,0.00030266,2]
[319770055,1710961856584,155.06194733,0.00020591,2]
[319770056,1710961856779,-1476.73003936,0.00024177,2]
[319770057,1710961856790,-157.50519909,0.00024177,2]
[319770058,1710961856800,-500.0,0.00024787,2]
[319770059,1710961856817,-353.12306953,0.00025061,2]
[319770060,1710961856831,-681.36832642,0.00027397,2]
[319770061,1710961856840,-681.36832642,0.00027397,2]
[319770062,1710961856850,-83.3163812,0.00027397,2]
[319770063,1710961856863,-598.05194522,0.00027397,2]
[319770064,1710961856873,-681.36832642,0.00027397,2]
[319770065,1710961856883,-681.36832642,0.00027397,2]
[319770066,1710961856973,-681.36832642,0.00027397,2]
[319770067,1710961856984,-681.36832642,0.00027397,2]
[319770068,1710961856993,-59.4650391,0.00027397,2]
[319770069,1710961857004,-621.90328732,0.00027397,2]
[319770070,1710961857014,-681.36832642,0.00027397,2]
[319770071,1710961857023,-681.36832642,0.00027397,2]
[319770072,1710961857033,-681.36832642,0.00027397,2]
[319770073,1710961857042,-681.36832642,0.00027397,2]
[319770074,1710961857051,-681.36832642,0.00027397,2]
[319770075,1710961857060,-681.36832642,0.00027397,2]
[319770076,1710961857069,-681.36832642,0.00027397,2]
[319770077,1710961857079,-681.36832642,0.00027397,2]
[319770078,1710961857088,-681.36832642,0.00027397,2]
[319770079,1710961857097,-681.36832642,0.00027397,2]
[319770080,1710961857106,-681.36832642,0.00027397,2]
[319770081,1710961857115,-681.36832642,0.00027397,2]
[319770082,1710961857124,-681.36832642,0.00027397,2]
[319770083,1710961857133,-681.36832642,0.00027397,2]
[319770084,1710961857142,-681.36832642,0.00027397,2]
[319770085,1710961857150,-681.36832642,0.00027397,2]
[319770086,1710961857161,-681.36832642,0.00027397,2]
[319770087,1710961857170,-681.36832642,0.00027397,2]
[319770088,1710961857182,-681.36832642,0.00027397,2]
[319770089,1710961857192,-681.36832642,0.00027397,2]
[319770090,1710961857201,-681.36832642,0.00027397,2]
[319770091,1710961857211,-681.36832642,0.00027397,2]
[319770092,1710961857220,-681.36832642,0.00027397,2]
[319770093,1710961857229,-681.36832642,0.00027397,2]
[319770094,1710961857239,-681.36832642,0.00027397,2]
[319770095,1710961857248,-681.36832642,0.00027397,2]
[319770096,1710961857257,-681.36832642,0.00027397,2]
[319770097,1710961857267,-681.36832642,0.00027397,2]
[319770098,1710961857277,-599.55302386,0.00027397,2]
[319770099,1710961857526,-81.81530256,0.00027397,2]
[319770100,1710961857536,-681.36832642,0.00027397,2]
[319770101,1710961857545,-681.36832642,0.00027397,2]
[319770102,1710961857555,-4421.28,0.00028349,2]
[319770103,1710961857565,-4421.28,0.00028623,2]
[319770104,1710961857574,-1765.84014825,0.00028896,2]
[319770124,1710962042723,169.419588,0.00026575,120]
[319770125,1710962188616,3023.4772969,0.0002999,30]
[319770126,1710962263240,4190.5169872,0.00020613,2]
[319770127,1710962288931,8977.18216847,0.00020613,2]
[319770128,1710962290766,-6893.0,0.00020613,2]
[319770129,1710962303918,5167.41174418,0.00020407,2]
[319770130,1710962319890,5180.04739214,0.00020407,2]
[319770131,1710962326492,1173.5558587,0.0002009,2]
[319770132,1710962346114,19047.25682146,0.00020407,2]
[319770133,1710962350743,19704.18279938,0.00020407,2]
[319770134,1710962356851,687.77022552,0.00020407,2]
[319770135,1710962360177,-154.90705577,0.00020605,2]
[319770136,1710962360197,-154.90705577,0.00020605,2]
[319770137,1710962360218,-616.97666661,0.00020606,2]
[319770138,1710962360237,-205.03177245,0.00020606,2]
[319770139,1710962360258,-191.84776158,0.00020606,2]
[319770140,1710962360281,-1609.06716003,0.00020606,2]
[319770141,1710962360301,-210.03782905,0.00020607,2]
[319770142,1710962360320,-1476.73003936,0.00020607,2]
[319770143,1710962360340,-683.2104041,0.00020607,2]
[319770144,1710962360361,-1571.32607788,0.00020607,2]
[319770145,1710962360381,-154.90705577,0.00020608,2]
[319770146,1710962360402,-6732.9872,0.00020608,2]
[319770147,1710962360422,-617.22297627,0.00020608,2]
[319770148,1710962360442,-3436.23958139,0.00020608,2]
[319770149,1710962360462,-2602.41354396,0.00020609,2]
[319770150,1710962360482,-312.18782001,0.00020609,2]
[319770151,1710962360594,154.90705577,0.00020407,2]
[319770152,1710962364101,19047.25682146,0.00020407,2]
[319770153,1710962369435,2272.06560979,0.00020407,2]
[319770154,1710962370716,7842.28786842,0.00020407,2]
[319770155,1710962372689,687.77022552,0.00020407,2]
[319770156,1710962379218,154.90705577,0.00020407,2]
[319770157,1710962381791,241.981717,0.00019891,2]
[319770158,1710962384101,1146.06240746,0.00020407,2]
[319770159,1710962397677,994.38955449,0.00030007,30]
[319770160,1710962411292,185.1362304,0.00019891,2]
[319770161,1710962420185,26793.5265818,0.00019927,2]
[319770162,1710962428955,-302.11520456,0.00020601,2]
[319770163,1710962428978,-783.57894867,0.00020602,2]
[319770164,1710962429001,-534.46429513,0.00020602,2]
[319770165,1710962429023,-156.21736877,0.00020602,2]
[319770166,1710962429048,-685.20411728,0.00020602,2]
[319770167,1710962429078,-154.90705577,0.00020602,2]
[319770168,1710962429102,-322.45069646,0.00020603,2]
[319770169,1710962429124,-239.17077989,0.00020603,2]
[319770170,1710962429148,-814.96064088,0.00020603,2]
[319770171,1710962429172,-306.39995912,0.00020607,2]
[319770172,1710962429195,-2602.41354396,0.00020608,2]
[319770173,1710962429217,-155.48760765,0.00020608,2]
[319770174,1710962429239,-250.90453363,0.00020608,2]
[319770175,1710962429261,-779.2579641,0.0002061,2]
[319770176,1710962429282,-154.92253873,0.00020611,2]
[319770177,1710962429304,-154.92253873,0.00020611,2]
[319770178,1710962429331,-154.92253873,0.00020611,2]
[319770179,1710962429520,-154.90705577,0.00020611,2]
[319770180,1710962429541,-154.92253873,0.00020613,2]
[319770181,1710962429564,-513.09941389,0.00021226,2]
[319770182,1710962429584,-469.98746995,0.00021248,2]
[319770183,1710962429605,-154.90705577,0.00021248,2]
[319770184,1710962429625,-205.03177245,0.00021248,2]
[319770185,1710962429644,-210.03782905,0.00021248,2]
[319770186,1710962429663,-6732.9872,0.00021248,2]
[319770187,1710962429683,-616.97666661,0.00021248,2]
[319770188,1710962429703,-3436.23958139,0.00021248,2]
[319770189,1710962429724,-1386.305953,0.00021249,2]
[319770190,1710962429744,-1476.73003936,0.00021249,2]
[319770191,1710962429764,-1576.56709197,0.00021249,2]
[319770192,1710962439444,12136.95384135,0.00020407,2]
[319770193,1710962499784,-779.2579641,0.000206,2]
[319770194,1710962499805,-685.20411728,0.00021228,2]
[319770195,1710962499827,-239.17077989,0.00021229,2]
[319770196,1710962499848,-191.84776158,0.00021229,2]
[319770197,1710962499871,-1789.88513433,0.0002123,2]
[319770198,1710962499893,-3504.14814187,0.00021245,2]
[319770199,1710962499914,-300.0,0.00021245,2]
[319770200,1710962499936,-302.11520456,0.00021246,2]
[319770201,1710962499960,-322.19836725,0.00021246,2]
[319770202,1710962499982,-3436.23958139,0.00021246,2]
[319770203,1710962500004,-288.55092132,0.00021248,2]
[319770204,1710962500025,-156.21736877,0.00021248,2]
[319770205,1710962500046,-154.90705577,0.00021248,2]
[319770206,1710962500067,-497.79677447,0.00021248,2]
[319770207,1710962500087,-702.97948055,0.00021249,2]
[319770208,1710962500107,-154.96714383,0.00021249,2]
[319770209,1710962500130,-1547.96307137,0.00021249,2]
[319770210,1710962500153,-2602.41354396,0.00021249,2]
[319770211,1710962500173,-6732.9872,0.00021249,2]
[319770212,1710962500193,-534.20265257,0.00021249,2]
[319770213,1710962500214,-24900.0,0.0002125,2]
[319770214,1710962500235,-151.94773514,0.00021301,2]
[319770215,1710962513468,2108.72858762,0.00020407,2]
[319770216,1710962575780,-4663.57880246,0.00021247,2]
[319770217,1710962575803,-1609.06716003,0.00021248,2]
[319770218,1710962575824,-154.8915759,0.00021249,2]
[319770219,1710962575845,-6.30257386,0.00021301,2]
[319770220,1710962575868,-154.8915759,0.00021314,2]
[319770221,1710962575889,-3436.23958139,0.00021314,2]
[319770222,1710962575912,-796.6616823,0.00021315,2]
[319770223,1710962575935,-696.4099745,0.00021423,2]
[319770224,1710962575956,-154.8915759,0.00021456,2]
[319770225,1710962575977,-10745.15768125,0.00021457,2]
[319770226,1710962575998,-1363.328696,0.00021468,2]
[319770227,1710962576019,-4797.5906118,0.00021476,2]
[319770228,1710962576042,-250.0,0.00021569,2]
[319770229,1710962576069,-185.00956,0.00021574,2]
[319770230,1710962576089,-212.5043903,0.00021683,2]
[319770231,1710962576111,-118.47455841,0.00021918,2]
[319770234,1710962721126,-779.2579641,0.00021809,2]
[319770235,1710962721150,-191.84776158,0.0002181,2]
[319770236,1710962721174,-3504.14814187,0.00021811,2]
[319770237,1710962721201,-331.89131947,0.00021811,2]
[319770238,1710962721223,-154.8915759,0.00021811,2]
[319770239,1710962721246,-1571.32607788,0.00021811,2]
[319770240,1710962722333,239.17077989,0.00021808,2]
[319770241,1710962733112,313.49738956,0.00021811,2]
[319770242,1710962735206,3703.96898975,0.00021811,2]
[319770243,1710962961476,2215.37408187,0.00019357,2]
[319770244,1710962982463,169.419588,0.00026575,120]
[319770301,1710963032745,-269.83823354,0.00020804,2]
[319770302,1710963032757,-154.87609912,0.00020805,2]
[319770303,1710963032767,-683.2104041,0.00020805,2]
[319770304,1710963032777,-1919.09606837,0.00020805,2]
[319770305,1710963032786,-187.57184153,0.00020806,2]
[319770306,1710963032796,-154.87609912,0.00020806,2]
[319770307,1710963032806,-331.89131947,0.00020806,2]
[319770308,1710963032815,-154.87609912,0.00020807,2]
[319770309,1710963032825,-154.87609912,0.00020807,2]
[319770310,1710963032834,-154.87609912,0.00020808,2]
[319770311,1710963032844,-6732.9872,0.00020808,2]
[319770312,1710963032853,-300.0,0.00020809,2]
[319770313,1710963032863,-3504.14814187,0.0002081,2]
[319770314,1710963032872,-158.14912,0.00020812,2]
[319770315,1710963032882,-250.0,0.00020851,2]
[319770316,1710963032891,-4550.16564704,0.00021812,2]
[319770317,1710963032901,-154.87609912,0.00022,2]
[319770318,1710963032911,-1618.00449362,0.00022,2]
[319770319,1710963032921,-157.50519909,0.00022169,2]
[319770320,1710963032930,-876.45467613,0.00022419,2]
[319770321,1710963032940,-864.17841679,0.0002242,2]
[319770322,1710963032950,-3436.23958139,0.0002242,2]
[319770323,1710963032959,-1885.12194892,0.0002242,2]
[319770324,1710963032969,-210.95504491,0.0002242,2]
[319770325,1710963032979,-154.93802479,0.0002242,2]
[319770326,1710963032988,-24900.0,0.00022422,2]
[319770327,1710963032998,-480.0,0.00022889,2]
[319770328,1710963033008,-702.57351614,0.00023765,2]
[319770329,1710963033018,-187.22672451,0.00024125,2]
[319770330,1710963033028,-2215.37408187,0.00024357,2]
[319770331,1710963033038,-286.50523909,0.00024485,2]
[319770332,1710963033047,-617.22297627,0.00024557,2]
[319770333,1710963033057,-182.97972822,0.00024582,2]
[319770334,1710963033067,-366.62315762,0.00024582,2]
[319770335,1710963033076,-1537.480344,0.00024582,2]
[319770336,1710963033086,-1476.73003936,0.00024582,2]
[319770337,1710963033095,-186.99808186,0.00024582,2]
[319770338,1710963033105,-391.43621159,0.00024582,2]
[319770340,1710963033117,-239.09546587,0.00024582,2]
[319770341,1710963033127,-201.72397373,0.00024582,2]
[319770343,1710963033136,-313.49738956,0.00024582,2]
[319770345,1710963033146,-1571.32607788,0.00024583,2]
[319770346,1710963033155,-270.48618805,0.00024584,2]
[319770347,1710963033165,-156.21736877,0.00024584,2]
[319770348,1710963033174,-685.20411728,0.00024584,2]
[319770349,1710963033183,-616.97666661,0.00024584,2]
[319770350,1710963033194,-469.98746995,0.00024584,2]
[319770352,1710963033203,-154.92253873,0.00024584,2]
[319770354,1710963033212,-154.92253873,0.00024584,2]
[319770356,1710963033222,-2602.41354496,0.00024584,2]
[319770358,1710963033231,-2745.78191176,0.00024584,2]
[319770360,1710963033240,-275.34632078,0.00024584,2]
[319770362,1710963033252,-1954.57424788,0.00024584,2]
[319770364,1710963033261,-602.76739922,0.00024585,2]
[319770366,1710963033270,-500.0,0.00024585,2]
[319770368,1710963033280,-500.0,0.00024585,2]
[319770370,1710963033289,-500.0,0.00024585,2]
[319770372,1710963033298,-341.17316994,0.00024585,2]
[319770374,1710963033307,-500.0,0.00024585,2]
[319770376,1710963033316,-500.0,0.00024585,2]
[319770378,1710963033325,-500.0,0.00024585,2]
[319770380,1710963033334,-500.0,0.00024585,2]
[319770382,1710963033343,-500.0,0.00024585,2]
[319770384,1710963033352,-500.0,0.00024585,2]
[319770386,1710963033362,-294.38179439,0.00024585,2]
[319770388,1710963033371,-71759.34783169,0.00024586,2]
[319770390,1710963033381,-7756.42032702,0.00024588,2]
[319770392,1710963033391,-819.33646414,0.00024588,2]
[319770394,1710963033400,-500.0,0.00024657,2]
[319770396,1710963033410,-357.96922088,0.00024657,2]
[319770398,1710963033419,-500.0,0.00024657,2]
[319770400,1710963033428,-435.63761526,0.00024657,2]
[319770402,1710963033438,-500.0,0.00024657,2]
[319770404,1710963033447,-500.0,0.00024657,2]
[319770406,1710963033458,-500.0,0.00024657,2]
[319770407,1710963033467,-500.0,0.00024657,2]
[319770408,1710963033476,-186.56960957,0.00024657,2]
[319770409,1710963033485,-500.0,0.00024657,2]
[319770410,1710963033495,-500.0,0.00024657,2]
[319770411,1710963033505,-500.0,0.00024657,2]
[319770412,1710963033515,-500.0,0.00024657,2]
[319770413,1710963033524,-500.0,0.00024657,2]
[319770414,1710963033533,-500.0,0.00024657,2]
[319770415,1710963033542,-500.0,0.00024657,2]
[319770417,1710963033551,-500.0,0.00024657,2]
[319770418,1710963033561,-500.0,0.00024657,2]
[319770421,1710963033571,-500.0,0.00024657,2]
[319770422,1710963033580,-500.0,0.00024657,2]
[319770425,1710963033590,-2248.2,0.00024657,2]
[319770427,1710963033599,-500.0,0.00024657,2]
[319770429,1710963033609,-500.0,0.00024657,2]
[319770431,1710963033619,-1953.44,0.00024657,2]
[319770433,1710963033627,-500.0,0.00024657,2]
[319770435,1710963033637,-500.0,0.00024657,2]
[319770436,1710963033645,-500.0,0.00024657,2]
[319770439,1710963033655,-500.0,0.00024657,2]
[319770441,1710963033665,-500.0,0.00024657,2]
[319770443,1710963033674,-500.0,0.00024657,2]
[319770445,1710963033683,-500.0,0.00024657,2]
[319770447,1710963033692,-500.0,0.00024657,2]
[319770448,1710963033701,-500.0,0.00024657,2]
[319770450,1710963033711,-500.0,0.00024657,2]
[319770452,1710963033720,-500.0,0.00024657,2]
[319770454,1710963033729,-500.0,0.00024657,2]
[319770456,1710963033738,-500.0,0.00024657,2]
[319770458,1710963033748,-500.0,0.00024657,2]
[319770460,1710963033758,-2352.01,0.00024657,2]
[319770462,1710963033767,-500.0,0.00024657,2]
[319770464,1710963033778,-500.0,0.00024657,2]
[319770466,1710963033787,-500.0,0.00024657,2]
[319770468,1710963033797,-1133.89,0.00024657,2]
[319770470,1710963033806,-500.0,0.00024657,2]
[319770472,1710963033815,-1717.55,0.00024657,2]
[319770474,1710963033824,-500.0,0.00024657,2]
[319770476,1710963033833,-200.0,0.00024658,2]
[319770478,1710963033842,-380.0,0.00024658,2]
[319770480,1710963033852,-464.63382891,0.00024688,2]
[319770482,1710963033861,-500.0,0.00024786,2]
[319770484,1710963033870,-500.0,0.00024786,2]
[319770486,1710963033879,-500.0,0.00024786,2]
[319770488,1710963033888,-500.0,0.00024786,2]
[319770490,1710963033898,-500.0,0.00024786,2]
[319770492,1710963033907,-500.0,0.00024786,2]
[319770494,1710963033917,-500.0,0.00024786,2]
[319770496,1710963033926,-4656.72,0.00024786,2]
[319770498,1710963033935,-500.0,0.00024786,2]
[319770500,1710963033944,-500.0,0.00024786,2]
[319770502,1710963033953,-500.0,0.00024786,2]
[319770504,1710963033962,-500.0,0.00024786,2]
[319770506,1710963033971,-500.0,0.00024786,2]
[319770508,1710963033980,-500.0,0.00024786,2]
[319770510,1710963033990,-500.0,0.00024786,2]
[319770512,1710963033999,-500.0,0.00024786,2]
[319770514,1710963034009,-500.0,0.00024787,2]
[319770516,1710963034018,-500.0,0.00024787,2]
[319770518,1710963034027,-500.0,0.00024787,2]
[319770520,1710963034037,-500.0,0.00024787,2]
[319770522,1710963034046,-500.0,0.00024787,2]
[319770524,1710963034056,-557.13642759,0.00024787,2]
[319770526,1710963034065,-509.7021909,0.00024787,2]
[319770528,1710963034074,-500.0,0.00024787,2]
[319770530,1710963034083,-500.0,0.00024787,2]
[319770532,1710963034093,-421.07023558,0.00024789,2]
[319770534,1710963034104,-286.50523909,0.00024846,2]
[319770536,1710963034114,-500.0,0.00024931,2]
[319770538,1710963034125,-500.0,0.00024931,2]
[319770540,1710963034134,-500.0,0.00024931,2]
[319770542,1710963034143,-500.0,0.00024931,2]
[319770544,1710963034154,-500.0,0.00024931,2]
[319770546,1710963034163,-500.0,0.00024931,2]
[319770548,1710963034173,-500.0,0.00024931,2]
[319770550,1710963034182,-500.0,0.00024931,2]
[319770552,1710963034193,-500.0,0.00024931,2]
[319770554,1710963034202,-500.0,0.00024931,2]